bitfinex/quotes_SOLUSD_20250915
["timestamp","ask_amount","ask_price","bid_price","bid_amount"]
[1757935402783,39.59559401,236.71,236.7,1e-08]
[1757935402990,81.6451325,236.71,236.65,0.67]
[1757935403193,2.57256405,236.66,236.65,0.67]
[1757935403382,36.53256405,236.66,236.65,0.67]
[1757935404500,40.75803519,236.66,236.65,0.67]
[1757935407575,6.79803519,236.66,236.65,0.67]
[1757935407808,40.75803519,236.66,236.65,0.67]
[1757935408007,13.59559401,236.65,236.63,0.67]
[1757935408194,33.96,236.64,236.61,0.06000001]
[1757935408683,4.22600684,236.63,236.62,0.67]
[1757935410092,4.22600684,236.63,236.61,0.06000001]
[1757935410283,33.96,236.62,236.61,0.73000001]
[1757935410599,40.75874949,236.62,236.61,0.73000001]
[1757935410811,54.3543435,236.62,236.61,0.06000001]
[1757935411901,20.3943435,236.62,236.61,0.06000001]
[1757935412081,54.3543435,236.62,236.61,0.06000001]
[1757935413310,39.59559401,236.59,236.58,0.06]
[1757935413520,85.43251716,236.59,236.56,0.06]
[1757935413805,85.43251716,236.59,236.51,0.1]
[1757935413806,39.59559401,236.55,236.51,0.1]
[1757935414006,76.12815806,236.55,236.51,0.1]
[1757935415012,80.35559412,236.55,236.51,0.1]
[1757935415191,46.39559412,236.55,236.51,0.1]
[1757935415384,80.35559412,236.55,236.51,0.1]
[1757935415585,77.78303007,236.55,236.51,0.1]
[1757935415790,80.35559412,236.55,236.51,0.1]
[1757935416002,80.35559412,236.55,236.52,0.7]
[1757935416204,46.39559412,236.55,236.51,0.1]
[1757935416407,39.59559401,236.52,236.51,0.1]
[1757935416598,76.12815806,236.52,236.51,0.1]
[1757935416910,89.61080465,236.52,236.51,1e-08]
[1757935417112,96.82366445,236.52,236.51,1e-08]
[1757935417298,13.73775558,236.51,236.49,1e-08]
[1757935417502,50.12815806,236.5,236.49,1e-08]
[1757935418010,50.12815806,236.5,236.49,0.70000001]
[1757935418796,182.62815806,236.5,236.49,1e-08]
[1757935419206,186.85648786,236.5,236.49,1e-08]
[1757935419616,152.89648786,236.5,236.49,1e-08]
[1757935419831,186.85648786,236.5,236.49,1e-08]
[1757935420316,54.35648786,236.5,236.49,1e-08]
[1757935422901,51.78392381,236.5,236.49,0.70000001]
[1757935423102,54.35648786,236.5,236.49,0.70000001]
[1757935423407,54.35648786,236.5,236.49,1e-08]
[1757935424209,20.39648786,236.5,236.49,1e-08]
[1757935424414,54.35648786,236.5,236.49,0.70000001]
[1757935424606,6.80089385,236.5,236.49,0.70000001]
[1757935424808,38.1883298,236.5,236.49,0.70000001]
[1757935427611,40.76089385,236.5,236.49,1e-08]
[1757935429430,40.76089385,236.5,236.49,0.67000001]
[1757935430533,40.76089385,236.5,236.49,1e-08]
[1757935430730,54.35648786,236.5,236.49,1e-08]
[1757935432331,9.74530424,236.5,236.49,0.67000001]
[1757935432523,38.1883298,236.5,236.49,0.67000001]
[1757935433741,30.2283298,236.5,236.49,0.67000001]
[1757935433933,64.1883298,236.5,236.49,0.67000001]
[1757935434242,66.76089385,236.5,236.49,0.67000001]
[1757935434617,32.80089385,236.5,236.49,0.67000001]
[1757935435115,66.76089385,236.5,236.49,0.67000001]
[1757935435631,66.76089385,236.5,236.49,1e-08]
[1757935437414,32.80089385,236.5,236.49,1e-08]
[1757935437619,66.76089385,236.5,236.49,1e-08]
[1757935437820,66.76089385,236.5,236.49,0.67000001]
[1757935439234,64.1883298,236.5,236.49,0.67000001]
[1757935439437,66.76089385,236.5,236.49,0.67000001]
[1757935440921,66.76089385,236.5,236.49,1e-08]
[1757935441820,66.74089385,236.5,236.49,0.68000001]
[1757935442923,66.74089385,236.5,236.49,1e-08]
[1757935443722,65.81947162,236.5,236.49,1e-08]
[1757935445242,65.81947162,236.5,236.49,0.68000001]
[1757935448336,65.81947162,236.5,236.49,1e-08]
[1757935449119,65.81947162,236.5,236.49,0.68000001]
[1757935450544,65.81947162,236.5,236.49,1e-08]
[1757935451957,31.87947162,236.5,236.49,0.68000001]
[1757935452124,65.79947162,236.5,236.49,0.68000001]
[1757935453836,0.03,236.51,236.49,0.68000001]
[1757935454222,4.25817894,236.51,236.49,0.68000001]
[1757935454623,33.92,236.5,236.49,0.68000001]
[1757935455267,36.766754,236.5,236.49,0.68000001]
[1757935455853,54.59067781,236.5,236.49,1e-08]
[1757935457546,54.59067781,236.5,236.49,0.68000001]
[1757935458252,187.09067781,236.5,236.49,0.68000001]
[1757935460254,173.4950838,236.5,236.49,0.68000001]
[1757935461550,173.4950838,236.5,236.49,1e-08]
[1757935462637,187.09067781,236.5,236.49,1e-08]
[1757935463452,187.07067781,236.5,236.49,0.68000001]
[1757935464036,54.57067781,236.5,236.49,0.68000001]
[1757935464248,40.9750838,236.5,236.49,0.68000001]
[1757935465936,7.0750838,236.5,236.49,0.68000001]
[1757935466249,40.9750838,236.5,236.49,0.68000001]
[1757935466450,40.9750838,236.5,236.49,1e-08]
[1757935466750,54.57067781,236.5,236.49,1e-08]
[1757935467157,20.67067781,236.5,236.49,1e-08]
[1757935467342,54.57067781,236.5,236.49,1e-08]
[1757935467744,68.68066132,236.5,236.46,0.06]
[1757935467955,1.65114182,236.48,236.46,0.06]
[1757935468249,36.746754,236.47,236.46,0.06]
[1757935469540,40.97562024,236.47,236.46,0.06]
[1757935470448,54.57121425,236.47,236.46,1e-08]
[1757935470653,56.22235607,236.47,236.46,1e-08]
[1757935471353,54.57121425,236.47,236.46,1e-08]
[1757935473038,56.22235607,236.47,236.46,0.66000001]
[1757935473349,56.22235607,236.47,236.46,1e-08]
[1757935474360,56.40235607,236.47,236.46,1e-08]
[1757935474652,41.24673583,236.45,236.44,1e-08]
[1757935474852,82.20271376,236.45,236.44,1e-08]
[1757935475050,85.77082847,236.45,236.44,1e-08]
[1757935475438,82.20271376,236.45,236.44,1e-08]
[1757935480443,92.9557736,236.45,236.41,1e-08]
[1757935480760,1.65114182,236.42,236.41,1e-08]
[1757935480943,43.87487026,236.42,236.41,1e-08]
[1757935481463,48.10463085,236.42,236.41,1e-08]
[1757935483861,46.45348903,236.42,236.41,1e-08]
[1757935484049,48.10463085,236.42,236.41,1e-08]
[1757935485840,61.70022486,236.42,236.41,0.66000001]
[1757935486035,61.70022486,236.42,236.41,1e-08]
[1757935486652,27.84022486,236.42,236.41,1e-08]
[1757935486847,61.70022486,236.42,236.41,0.66000001]
[1757935487562,61.70022486,236.42,236.41,1e-08]
[1757935487862,61.70022486,236.42,236.41,0.66000001]
[1757935488162,61.70022486,236.42,236.41,1e-08]
[1757935491062,60.02908304,236.42,236.41,1e-08]
[1757935491268,61.68022486,236.42,236.41,1e-08]
[1757935498755,61.68022486,236.42,236.41,0.71000001]
[1757935498957,61.71022486,236.42,236.41,0.71000001]
[1757935500475,61.71022486,236.42,236.41,1e-08]
[1757935502960,61.69022486,236.42,236.41,0.71000001]
[1757935503160,61.69022486,236.42,236.41,1e-08]
[1757935503477,61.69022486,236.42,236.41,0.71000001]
[1757935503869,7.10651459,236.42,236.41,0.71000001]
[1757935504069,38.07976059,236.42,236.41,0.71000001]
[1757935505282,40.66123049,236.42,236.41,0.71000001]
[1757935505585,43.50607411,236.42,236.41,0.71000001]
[1757935506066,40.92460421,236.42,236.41,0.71000001]
[1757935507166,43.50607411,236.42,236.41,0.71000001]
[1757935508867,62.61864256,236.42,236.41,1e-08]
[1757935510884,64.31495944,236.42,236.41,1e-08]
[1757935512173,64.31495944,236.42,236.39,0.06]
[1757935512174,39.59559401,236.4,236.39,1e-08]
[1757935512375,78.82190753,236.4,236.39,1e-08]
[1757935512979,80.51829634,236.4,236.39,1e-08]
[1757935514191,84.74841478,236.4,236.39,1e-08]
[1757935514782,82.16694488,236.4,236.39,1e-08]
[1757935517090,82.16694488,236.4,236.39,0.71000001]
[1757935518497,85.73505959,236.4,236.39,0.71000001]
[1757935523188,88.31652949,236.4,236.39,0.71000001]
[1757935525197,88.31652949,236.4,236.39,1e-08]
[1757935527497,88.31652949,236.4,236.39,0.71000001]
[1757935528302,88.31652949,236.4,236.39,1e-08]
[1757935529306,39.59559401,236.37,236.36,0.06]
[1757935529484,13.59559401,236.32,236.31,0.1]
[1757935529807,52.76190753,236.32,236.31,0.1]
[1757935530098,52.76190753,236.32,236.31,0.81]
[1757935530799,52.76190753,236.32,236.31,0.1]
[1757935530993,26.0,236.29,236.28,0.71]
[1757935531194,62.58484362,236.29,236.23,2.5814699]
[1757935531395,14.81356075,236.27,236.23,2.5814699]
[1757935531607,33.74,236.26,236.23,2.5814699]
[1757935531794,33.74,236.26,236.24,0.71]
[1757935532107,36.3214699,236.26,236.24,0.71]
[1757935532305,36.3214699,236.26,236.25,0.71]
[1757935532306,26.0,236.26,236.25,0.71]
[1757935532612,26.0,236.26,236.11,0.1]
[1757935532613,13.59559401,236.25,236.13,4.23479045]
[1757935532796,33.74,236.24,236.23,0.71]
[1757935532994,36.58883249,236.24,236.19,2.5814699]
[1757935533193,33.74,236.24,236.14,26.0]
[1757935533498,33.74,236.24,236.22,0.71]
[1757935533499,4.23316259,236.23,236.22,0.71]
[1757935533803,172.09559401,236.22,236.11,0.1]
[1757935533987,208.68121289,236.22,236.16,2.5814699]
[1757935534308,208.68121289,236.22,236.19,0.71]
[1757935534714,211.26268279,236.22,236.19,0.71]
[1757935535086,213.84415269,236.22,236.19,0.71]
[1757935535505,218.07749449,236.22,236.19,0.71]
[1757935536596,26.0,236.18,236.11,0.81]
[1757935536813,16.17706391,236.13,236.11,0.81]
[1757935537116,26.0,236.14,236.11,0.81]
[1757935537300,12.64978141,236.12,236.11,0.81]
[1757935537490,12.64978141,236.12,236.11,0.1]
[1757935538107,12.64978141,236.12,236.11,0.81]
[1757935538897,16.88491608,236.12,236.11,0.81]
[1757935539096,30.48051009,236.12,236.11,0.1]
[1757935539293,30.48051009,236.12,236.11,0.81]
[1757935539815,30.48051009,236.12,236.11,0.1]
[1757935540018,43.56426658,236.12,236.11,0.1]
[1757935540503,46.14573648,236.12,236.11,0.81]
[1757935540900,46.14573648,236.12,236.11,0.1]
[1757935541625,46.14573648,236.12,236.11,0.81]
[1757935542217,46.14573648,236.12,236.11,0.1]
[1757935543609,71.78729214,236.12,236.11,0.1]
[1757935543821,74.36876204,236.12,236.11,0.1]
[1757935544112,64.22051009,236.12,236.11,0.81]
[1757935544625,46.38978141,236.12,236.11,0.81]
[1757935546022,50.62491608,236.12,236.11,0.81]
[1757935547408,66.80197999,236.12,236.11,0.1]
[1757935547609,69.73748453,236.12,236.11,0.81]
[1757935548509,18.16675585,236.12,236.11,0.81]
[1757935548714,46.38978141,236.12,236.11,0.81]
[1757935548926,33.74,236.12,236.11,0.81]
[1757935549121,33.74,236.14,236.11,3.3914699]
[1757935549322,44.33162614,236.14,236.12,0.71]
[1757935549906,44.33162614,236.14,236.12,3.2914699]
[1757935550106,33.74,236.14,236.12,3.2914699]
[1757935550306,33.74,236.14,236.13,3.2614699]
[1757935550307,37.97548715,236.14,236.13,3.2614699]
[1757935550712,33.74,236.14,236.13,3.2614699]
[1757935552925,33.74,236.14,236.13,0.68]
[1757935553127,37.97477598,236.14,236.11,2.6814699]
[1757935553425,37.97477598,236.14,236.11,0.78]
[1757935553843,12.73641979,236.13,236.11,0.78]
[1757935554133,33.74,236.12,236.11,0.78]
[1757935555239,37.97513467,236.12,236.11,0.78]
[1757935556836,4.23459665,236.15,236.11,0.84]
[1757935557018,26.0,236.14,236.13,2.5814699]
[1757935557338,4.26368942,236.21,236.13,3.2614699]
[1757935557536,0.03,236.21,236.2,2.5814699]
[1757935557711,0.03,236.21,236.2,3.2614699]
[1757935558137,0.18,236.33,236.2,3.40363147]
[1757935558314,3.2614699,236.27,236.21,0.68]
[1757935558515,3.2614699,236.27,236.26,2.5814699]
[1757935558709,3.2614699,236.27,236.26,3.2614699]
[1757935558916,28.7,236.3,236.26,3.2614699]
[1757935559145,32.93192494,236.3,236.29,2.5814699]
[1757935559318,32.93192494,236.3,236.29,3.2614699]
[1757935559513,28.7,236.3,236.29,3.2614699]
[1757935559713,32.93190859,236.3,236.29,3.2614699]
[1757935559914,33.72,236.3,236.29,0.68]
[1757935560212,13.59559401,236.32,236.27,0.68]
[1757935560213,16.17706391,236.32,236.27,0.68]
[1757935560420,26.0,236.29,236.28,0.68]
[1757935560716,33.72,236.29,236.28,2.5814699]
[1757935561015,37.95208768,236.29,236.28,2.5814699]
[1757935561221,37.95208768,236.29,236.28,3.2614699]
[1757935562235,37.95208768,236.29,236.28,0.68]
[1757935562445,37.95208768,236.29,236.26,2.5814699]
[1757935562735,37.95208768,236.29,236.27,3.2414699]
[1757935562907,37.95208768,236.29,236.28,0.66]
[1757935563320,26.0,236.29,236.28,0.66]
[1757935563531,59.72,236.29,236.28,0.66]
[1757935563732,59.72,236.29,236.28,3.2414699]
[1757935564331,26.0,236.29,236.28,3.2414699]
[1757935565828,26.0,236.29,236.28,2.31306369]
[1757935566025,30.23208768,236.29,236.28,2.31306369]
[1757935567226,26.0,236.29,236.28,2.31306369]
[1757935567632,132.5,236.31,236.28,6.54532827]
[1757935567833,132.5,236.31,236.3,1.65306369]
[1757935568036,132.5,236.31,236.3,2.31306369]
[1757935568655,37.93120831,236.34,236.3,2.31306369]
[1757935568942,37.93120831,236.34,236.33,1.65306369]
[1757935569148,37.93120831,236.34,236.33,2.31306369]
[1757935569722,4.2308993,236.36,236.33,2.31306369]
[1757935569928,37.9308993,236.36,236.35,1.65306369]
[1757935570250,37.9308993,236.36,236.35,0.66]
[1757935570445,37.9308993,236.36,236.35,2.31306369]
[1757935570751,33.7,236.36,236.35,2.31306369]
[1757935571225,37.93083432,236.36,236.35,2.31306369]
[1757935571426,4.23083432,236.36,236.35,2.31306369]
[1757935571844,33.7,236.37,236.35,2.31306369]
[1757935572238,37.93065532,236.37,236.36,0.66]
[1757935572737,37.93065532,236.37,236.36,2.31306369]
[1757935573624,37.93065532,236.37,236.36,1.65306369]
[1757935574025,37.93065532,236.37,236.36,2.31306369]
[1757935574225,162.73048934,236.38,236.36,2.31306369]
[1757935574438,132.5,236.38,236.37,1.65306369]
[1757935574646,136.73047635,236.38,236.37,2.31306369]
[1757935574946,132.5,236.38,236.37,2.31306369]
[1757935575531,136.73047635,236.38,236.37,2.31306369]
[1757935575737,136.73047635,236.38,236.37,1.65306369]
[1757935576146,180.98666722,236.38,236.35,1.65306369]
[1757935576539,180.98666722,236.38,236.33,0.66]
[1757935576751,180.98666722,236.38,236.34,1.65306369]
[1757935577634,0.03,236.37,236.34,1.65306369]
[1757935577837,33.68,236.36,236.34,1.65306369]
[1757935578241,4.23101332,236.35,236.34,1.65306369]
[1757935578850,33.68,236.36,236.34,2.31306369]
[1757935579153,0.03,236.37,236.35,1.65306369]
[1757935579459,4.26065944,236.37,236.36,1.65306369]
[1757935579955,26.0,236.36,236.35,1.65306369]
[1757935580332,30.23083432,236.36,236.35,2.31306369]
[1757935580539,30.23083432,236.36,236.35,0.66]
[1757935580740,30.23083432,236.36,236.35,2.31306369]
[1757935581657,30.23083432,236.36,236.35,1.65306369]
[1757935581855,74.48792012,236.36,236.3,0.66]
[1757935582057,132.5,236.35,236.3,0.66]
[1757935582239,33.68,236.34,236.31,1.65306369]
[1757935582437,4.23137138,236.33,236.31,1.65306369]
[1757935582739,33.68,236.32,236.3,1.65306369]
[1757935582951,33.68,236.32,236.28,0.66]
[1757935583149,33.68,236.32,236.3,1.65306369]
[1757935583743,33.68,236.32,236.29,0.66]
[1757935583744,4.2317295,236.31,236.29,0.66]
[1757935583952,33.68,236.3,236.28,1.65306369]
[1757935584152,33.68,236.3,236.28,2.31306369]
[1757935584547,33.68,236.3,236.26,0.66]
[1757935584852,33.68,236.3,236.21,0.06]
[1757935584853,33.68,236.3,236.27,2.31306369]
[1757935586064,4.23208768,236.29,236.27,2.31306369]
[1757935586256,4.23208768,236.29,236.28,1.65306369]
[1757935586457,4.23208768,236.29,236.28,0.66]
[1757935586657,4.23208768,236.29,236.28,2.31306369]
[1757935587456,4.23208768,236.29,236.28,0.66]
[1757935587660,4.23119235,236.34,236.28,2.31306369]
[1757935587861,4.23119235,236.34,236.33,1.65306369]
[1757935588039,37.91119235,236.34,236.33,0.66]
[1757935588247,37.91119235,236.34,236.33,2.31306369]
[1757935588442,37.91119235,236.34,236.33,0.66]
[1757935588648,37.91119235,236.34,236.33,2.31306369]
[1757935589259,132.5,236.35,236.33,2.31306369]
[1757935589440,132.5,236.35,236.34,1.65306369]
[1757935589648,132.5,236.35,236.34,2.31306369]
[1757935590544,0.03,236.37,236.34,2.31306369]
[1757935590854,0.03,236.37,236.36,1.65306369]
[1757935591246,0.1,236.39,236.36,2.45522526]
[1757935591442,0.1,236.39,236.38,1.65306369]
[1757935592057,0.1,236.39,236.38,2.31306369]
[1757935592270,0.1,236.39,236.38,6.54354004]
[1757935592569,0.1,236.39,236.38,6.68570161]
[1757935593558,0.1,236.39,236.38,2.31306369]
[1757935596146,0.1,236.39,236.38,0.66]
[1757935596348,0.13,236.39,236.38,2.31306369]
[1757935602051,0.13,236.39,236.38,1.65306369]
[1757935602256,0.13,236.39,236.38,2.31306369]
[1757935604086,0.13,236.39,236.38,6.68570161]
[1757935604398,0.03,236.4,236.38,6.68570161]
[1757935604399,0.03,236.4,236.39,0.14216157]
[1757935604689,0.03,236.4,236.39,9.06748002]
[1757935605978,0.03,236.4,236.39,13.2977774]
[1757935606886,0.03,236.42,236.41,1.79522526]
[1757935607262,0.03,236.42,236.41,2.45522526]
[1757935607863,0.03,236.47,236.43,26.0]
[1757935608170,0.03,236.47,236.44,6.02462806]
[1757935608370,0.03,236.47,236.44,6.68462806]
[1757935611363,0.03,236.47,236.44,0.80216157]
[1757935611569,0.03,236.47,236.44,1.79522526]
[1757935611981,0.03,236.47,236.44,2.49522526]
[1757935612875,0.03,236.47,236.44,6.72462806]
[1757935616998,0.03,236.47,236.44,5.07156437]
[1757935617193,0.03,236.47,236.44,0.14216157]
[1757935617398,0.03,236.47,236.44,2.49522526]
[1757935617800,0.03,236.47,236.44,6.72462806]
[1757935620881,0.03,236.47,236.41,0.06]
[1757935621081,0.03,236.47,236.42,1.65306369]
[1757935621282,0.24,236.44,236.42,1.65306369]
[1757935621483,0.27,236.47,236.42,1.65306369]
[1757935621683,0.27,236.45,236.43,0.22783888]
[1757935622099,0.03,236.45,236.44,1.65306369]
[1757935622698,0.03,236.45,236.44,2.50522526]
[1757935623505,0.03,236.45,236.44,6.73462806]
[1757935623881,0.03,236.45,236.43,0.22783888]
[1757935624082,0.27,236.45,236.43,0.22783888]
[1757935624383,0.24,236.44,236.43,0.22783888]
[1757935624581,0.03,236.45,236.43,0.22783888]
[1757935625100,0.03,236.45,236.44,1.65306369]
[1757935625889,0.03,236.45,236.44,2.57903318]
[1757935626697,0.03,236.45,236.44,3.43119475]
[1757935627098,0.03,236.45,236.44,7.66059755]
[1757935629005,0.03,236.45,236.44,5.08156437]
[1757935629223,0.03,236.45,236.44,7.66059755]
[1757935631301,0.03,236.45,236.44,2.57903318]
[1757935632515,0.03,236.45,236.43,0.22783888]
[1757935634017,0.03,236.45,236.43,2.80687206]
[1757935635101,0.03,236.45,236.44,2.57903318]
[1757935636017,0.03,236.45,236.44,7.66059755]
[1757935638721,0.03,236.45,236.43,0.28783888]
[1757935638912,0.03,236.45,236.43,2.86687206]
[1757935640022,0.03,236.45,236.44,2.57903318]
[1757935640206,0.03,236.45,236.44,3.28903318]
[1757935640620,0.03,236.45,236.44,7.51843598]
[1757935641862,0.03,236.45,236.44,7.66059755]
[1757935642725,0.03,236.45,236.44,2.57903318]
[1757935642925,0.03,236.45,236.43,2.86687206]
[1757935644227,0.27,236.45,236.43,0.28783888]
[1757935644528,0.03,236.45,236.43,0.28783888]
[1757935645129,0.03,236.45,236.43,2.86687206]
[1757935646948,0.03,236.45,236.44,3.28903318]
[1757935648548,0.03,236.45,236.44,7.51843598]
[1757935649735,0.03,236.45,236.43,0.28783888]
[1757935653931,0.03,236.45,236.44,2.57903318]
[1757935654346,0.03,236.45,236.44,3.26903318]
[1757935655070,0.03,236.45,236.44,0.14216157]
[1757935655244,0.03,236.45,236.43,0.28783888]
[1757935655563,0.03,236.45,236.44,0.69]
[1757935657153,0.03,236.45,236.43,2.86687206]
[1757935657353,0.03,236.45,236.43,0.28783888]
[1757935659261,0.24,236.44,236.43,0.28783888]
[1757935659454,132.53,236.45,236.43,0.28783888]
[1757935659775,0.24,236.44,236.43,0.28783888]
[1757935659952,5.66803205,236.44,236.43,0.28783888]
[1757935660867,39.20803205,236.44,236.43,0.28783888]
[1757935661063,43.43743485,236.44,236.43,0.28783888]
[1757935664770,40.85840167,236.44,236.43,0.28783888]
[1757935664971,43.43743485,236.44,236.43,0.28783888]
[1757935665171,43.19743485,236.44,236.43,0.28783888]
[1757935666470,43.43743485,236.44,236.43,0.28783888]
[1757935666672,43.19743485,236.44,236.43,0.28783888]
[1757935667176,2.84899887,236.44,236.43,0.97783888]
[1757935667886,7.07840167,236.44,236.43,0.97783888]
[1757935668070,4.2294028,236.44,236.43,0.97783888]
[1757935669687,132.53,236.45,236.43,0.97783888]
[1757935669863,166.05,236.45,236.43,0.97783888]
[1757935670178,170.27930171,236.45,236.43,0.28783888]
[1757935673388,2.84343389,236.44,236.43,0.28783888]
[1757935674678,7.07283669,236.44,236.43,0.28783888]
[1757935674977,9.65186987,236.44,236.43,0.28783888]
[1757935676481,9.89186987,236.44,236.43,0.28783888]
[1757935676782,9.65186987,236.44,236.43,0.28783888]
[1757935677370,2.84343389,236.44,236.43,0.28783888]
[1757935677576,33.52,236.44,236.43,0.94783888]
[1757935678087,37.7494028,236.44,236.43,0.94783888]
[1757935678279,37.7494028,236.44,236.43,0.28783888]
[1757935678770,4.2294028,236.44,236.43,0.94783888]
[1757935679091,37.7494028,236.44,236.43,0.94783888]
[1757935680774,37.7494028,236.44,236.43,0.28783888]
[1757935681089,40.83148807,236.44,236.43,0.28783888]
[1757935681469,51.40499509,236.44,236.41,0.06]
[1757935681665,2.57903318,236.42,236.41,0.06]
[1757935681862,36.09903318,236.42,236.41,0.06]
[1757935682177,38.94111845,236.42,236.41,0.06]
[1757935682871,43.17087904,236.42,236.41,0.06]
[1757935687587,40.59184586,236.42,236.41,0.06]
[1757935688477,40.59184586,236.42,236.41,0.75]
[1757935688992,40.57184586,236.42,236.41,0.75]
[1757935689292,40.57184586,236.42,236.41,0.06]
[1757935689591,4.22976059,236.42,236.41,0.75]
[1757935691089,4.22976059,236.42,236.41,0.06]
[1757935691872,7.07083716,236.42,236.41,0.06]
[1757935692687,7.07083716,236.42,236.41,0.75]
[1757935694798,37.72976059,236.42,236.41,0.75]
[1757935694984,40.57083716,236.42,236.41,0.75]
[1757935695687,37.72976059,236.42,236.41,0.75]
[1757935697391,4.22976059,236.42,236.41,0.75]
[1757935697990,0.03,236.43,236.41,2.40202032]
[1757935698317,0.03,236.43,236.42,0.69]
[1757935704592,0.03,236.43,236.41,0.06]
[1757935704794,33.49,236.43,236.41,0.06]
[1757935705000,2.84470903,236.42,236.41,0.06]
[1757935705192,7.07446962,236.42,236.41,0.06]
[1757935706706,37.68976059,236.42,236.41,0.06]
[1757935706906,40.53623576,236.42,236.41,0.06]
[1757935707884,40.53623576,236.42,236.41,0.75]
[1757935712614,36.30647517,236.42,236.41,0.75]
[1757935713107,2.84647517,236.42,236.41,0.75]
[1757935713304,7.07623576,236.42,236.41,0.75]
[1757935715712,4.25958169,236.43,236.41,0.75]
[1757935715911,37.69958169,236.43,236.41,0.75]
[1757935716216,2.84647517,236.42,236.41,0.75]
[1757935716512,40.51623576,236.42,236.41,0.75]
[1757935717211,7.07623576,236.42,236.41,0.75]
[1757935717414,37.66976059,236.42,236.41,0.75]
[1757935717601,40.51623576,236.42,236.41,0.06]
[1757935718188,7.07623576,236.42,236.41,0.06]
[1757935718393,37.66976059,236.42,236.41,0.78]
[1757935718589,40.51623576,236.42,236.41,0.78]
[1757935719113,7.07623576,236.42,236.41,0.78]
[1757935719310,37.66976059,236.42,236.41,0.06]
[1757935719502,40.51623576,236.42,236.41,0.06]
[1757935719700,40.51623576,236.42,236.41,0.78]
[1757935721804,37.66976059,236.42,236.41,0.78]
[1757935725517,40.51582599,236.42,236.41,0.78]
[1757935725816,33.44,236.42,236.41,0.78]
[1757935726518,33.45,236.43,236.41,0.78]
[1757935726720,37.67959387,236.43,236.42,0.72]
[1757935726925,40.52549382,236.43,236.41,0.06]
[1757935727100,37.67959387,236.43,236.41,0.78]
[1757935727298,37.67959387,236.43,236.42,0.72]
[1757935727509,40.52554241,236.43,236.42,0.72]
[1757935728316,33.45,236.43,236.42,0.72]
[1757935728506,0.03,236.43,236.42,0.72]
[1757935729307,0.03,236.43,236.42,2.37202032]
[1757935729502,4.25958169,236.43,236.42,2.37202032]
[1757935732724,4.25958169,236.43,236.42,0.72]
[1757935738215,0.03,236.43,236.42,0.72]
[1757935738528,0.03,236.43,236.42,2.37202032]
[1757935739011,0.03,236.43,236.42,2.32202032]
[1757935740805,0.03,236.43,236.42,0.67]
[1757935742028,0.03,236.43,236.41,0.06]
[1757935742232,0.03,236.43,236.42,0.69]
[1757935743119,33.41,236.43,236.41,0.06]
[1757935743815,33.41,236.43,236.42,0.06]
[1757935744036,33.41,236.43,236.42,0.75]
[1757935744510,37.63958169,236.43,236.42,0.75]
[1757935745027,37.63958169,236.43,236.42,0.06]
[1757935747520,37.63958169,236.43,236.42,0.75]
[1757935749740,37.63958169,236.43,236.42,0.06]
[1757935751539,40.4815161,236.43,236.42,0.06]
[1757935752043,62.41448286,236.43,236.42,0.06]
[1757935752216,64.11058394,236.43,236.42,0.06]
[1757935753028,23.34234336,236.42,236.41,0.06]
[1757935753325,28.76466176,236.42,236.41,0.06]
[1757935753525,29.00466176,236.42,236.41,0.06]
[1757935753724,30.70083477,236.42,236.41,0.06]
[1757935757040,30.46083477,236.42,236.41,0.06]
[1757935757550,47.64485677,236.42,236.41,0.75]
[1757935757727,47.64485677,236.42,236.41,0.06]
[1757935757928,14.28485677,236.42,236.41,0.06]
[1757935758133,44.80292236,236.42,236.41,0.06]
[1757935758339,42.12786801,236.42,236.41,0.75]
[1757935758631,0.03,236.43,236.41,0.75]
[1757935758819,4.25965249,236.43,236.41,3.33038399]
[1757935759024,4.25965249,236.43,236.42,0.69]